bitfinex/quotes_SOLUSD_20250330
["timestamp","ask_amount","ask_price","bid_price","bid_amount"]
[1743306880373,19.70918286,126.23,126.18,0.063]
[1743306880573,12.80918286,126.23,126.18,0.063]
[1743306880764,19.72918286,126.23,126.18,0.063]
[1743306883446,27.65118286,126.23,126.18,0.063]
[1743306883776,18.79181043,126.19,126.18,0.063]
[1743306883957,20.0,126.16,126.14,7.9903]
[1743306884161,12.52485972,126.15,126.14,7.9903]
[1743306884978,12.52485972,126.15,126.14,0.063]
[1743306885563,20.0,126.18,126.14,0.063]
[1743306885767,12.52485972,126.16,126.14,0.063]
[1743306888782,12.52485972,126.15,126.14,0.063]
[1743306892386,12.52485972,126.16,126.14,0.063]
[1743306892792,12.66702129,126.15,126.14,0.063]
[1743306895873,67.43702129,126.15,126.14,0.063]
[1743306896495,67.57918286,126.15,126.14,0.063]
[1743306898393,86.22883172,126.15,126.14,0.063]
[1743306899690,94.15583172,126.15,126.14,0.063]
[1743306899899,47.77216157,126.12,126.09,7.9307]
[1743306900066,47.77216157,126.12,126.08,10.8196576]
[1743306900067,12.52485972,126.1,126.08,10.8196576]
[1743306900270,12.52485972,126.1,126.08,2.8883576]
[1743306900271,12.66702129,126.09,126.08,2.8883576]
[1743306901979,12.66702129,126.09,126.08,2.9513576]
[1743306903174,86.26667015,126.09,126.08,2.9513576]
[1743306903589,19.98702129,126.09,126.08,2.9513576]
[1743306903776,38.77883172,126.09,126.08,2.9513576]
[1743306905995,20.12918286,126.09,126.08,2.9513576]
[1743306907975,12.80918286,126.09,126.08,2.9513576]
[1743306910298,79.08883172,126.09,126.08,2.9513576]
[1743306910797,12.52485972,126.03,126.02,7.935]
[1743306911785,12.52485972,126.03,126.01,7.9988]
[1743306913401,12.52485972,126.06,126.01,27.8384]
[1743306914888,12.52485972,126.06,126.01,282.23196375]
[1743306915084,12.52485972,126.07,126.01,282.23196375]
[1743306915301,12.52485972,126.07,126.02,6.262]
[1743306916713,12.52485972,126.07,126.03,27.7711]
[1743306916884,12.66702129,126.1,126.04,1.6283]
[1743306917208,12.52485972,126.1,126.04,216.34256375]
[1743306917906,12.52485972,126.09,126.04,216.34256375]
[1743306918703,12.52485972,126.09,126.05,7.9333]
[1743306919220,12.52485972,126.08,126.05,27.7666]
[1743306919511,12.52485972,126.09,126.05,27.7666]
[1743306920509,47.63,126.08,126.05,27.7666]
[1743306923003,54.97,126.11,126.05,27.7666]
[1743306923393,47.63,126.09,126.05,27.7666]
[1743306925194,47.63,126.09,126.05,27.8296]
[1743306925818,47.63,126.1,126.05,27.8296]
[1743306926422,60.15485972,126.1,126.05,27.8296]
[1743306926599,47.63,126.1,126.05,27.8296]
[1743306927622,60.15485972,126.1,126.05,27.8296]
[1743306928307,47.63,126.1,126.05,163.1495]
[1743306928502,47.63,126.1,126.05,202.8162]
[1743306928822,47.63,126.11,126.05,202.8162]
[1743306930011,12.52485972,126.11,126.05,202.8162]
[1743306931127,47.63,126.1,126.05,202.8162]
[1743306931298,47.63,126.1,126.06,6.2545]
[1743306931928,47.63,126.1,126.07,27.7623]
[1743306932296,60.29702129,126.12,126.07,27.7623]
[1743306935421,60.15485972,126.1,126.07,7.9321]
[1743306935723,47.63,126.1,126.07,7.9321]
[1743306937225,47.63,126.1,126.06,7.9327]
[1743306937724,47.63,126.1,126.06,27.7645]
[1743306938519,60.15485972,126.09,126.06,7.9327]
[1743306939129,60.15485972,126.07,126.05,143.3159]
[1743306939312,60.15485972,126.07,126.05,7.996]
[1743306939811,47.63,126.07,126.05,7.996]
[1743306941539,47.63,126.08,126.05,7.996]
[1743306942138,47.63,126.08,126.05,27.8293]
[1743306942635,47.77216157,126.09,126.05,27.8293]
[1743306943133,47.63,126.09,126.05,27.8293]
[1743306944639,47.63,126.1,126.05,27.8293]
[1743306944840,47.63,126.1,126.05,163.1492]
[1743306946627,60.15485972,126.06,126.05,0.063]
[1743306947334,60.29702129,126.06,126.05,0.063]
[1743306950330,62.02388286,126.06,126.05,0.063]
[1743306951334,69.95658286,126.06,126.05,0.063]
[1743306951540,88.60623172,126.06,126.05,0.063]
[1743306951734,80.67353172,126.06,126.05,0.063]
[1743306952344,60.29702129,126.06,126.05,0.063]
[1743306954639,47.77216157,126.06,126.05,0.063]
[1743306954846,47.63,126.06,126.05,0.063]
[1743306958951,60.15485972,126.06,126.05,0.063]
[1743306960640,19.74485972,126.07,126.05,0.063]
[1743306960844,12.52485972,126.07,126.05,0.063]
[1743306962261,60.29702129,126.08,126.05,0.063]
[1743306963062,12.52485972,126.07,126.05,0.063]
[1743306965060,60.29702129,126.08,126.05,0.063]
[1743306965756,47.77216157,126.08,126.05,0.063]
[1743306965942,12.52485972,126.07,126.05,0.063]
[1743306967354,47.77216157,126.08,126.05,0.063]
[1743306967560,12.52485972,126.07,126.05,0.063]
[1743306971957,47.77216157,126.08,126.05,0.063]
[1743306971958,12.52485972,126.08,126.05,0.063]
[1743306972146,60.18485972,126.1,126.05,135.563]
[1743306972335,12.52485972,126.08,126.05,135.563]
[1743306972541,12.52485972,126.07,126.05,135.563]
[1743306972754,12.52485972,126.07,126.05,0.063]
[1743306973649,12.52485972,126.06,126.05,0.063]
[1743306973857,12.52485972,126.07,126.05,0.063]
[1743306978068,60.32702129,126.08,126.05,0.063]
[1743306978972,60.29702129,126.06,126.05,0.063]
[1743306979159,60.43918286,126.06,126.05,0.063]
[1743306979974,60.29702129,126.06,126.05,0.063]
[1743306980567,60.15485972,126.06,126.05,0.063]
[1743306981159,60.43918286,126.06,126.05,0.063]
[1743306981449,68.37188286,126.06,126.05,0.063]
[1743306981643,79.08883172,126.06,126.05,0.063]
[1743306981848,60.43918286,126.06,126.05,0.063]
[1743306983549,60.29702129,126.06,126.05,0.063]
[1743306983875,60.15485972,126.06,126.05,0.063]
[1743306987489,60.29702129,126.06,126.05,0.063]
[1743306987666,68.22972129,126.06,126.05,0.063]
[1743306987864,136.97880903,126.06,126.05,0.063]
[1743306988880,86.87937015,126.06,126.05,0.063]
[1743306989479,136.97880903,126.06,126.05,0.063]
[1743306993785,137.1209706,126.06,126.05,0.063]
[1743306994080,87.02153172,126.06,126.05,0.063]
[1743306994892,60.43918286,126.06,126.05,0.063]
[1743306995766,68.37188286,126.06,126.05,0.063]
[1743306996287,60.43918286,126.06,126.05,0.063]
[1743306999291,68.37188286,126.06,126.05,0.063]
[1743307000798,60.43918286,126.06,126.05,0.063]
[1743307001200,68.37188286,126.06,126.05,0.063]
[1743307001408,60.43918286,126.06,126.05,0.063]
[1743307002381,68.37188286,126.06,126.05,0.063]
[1743307003993,87.02153172,126.06,126.05,0.063]
[1743307004295,137.1209706,126.06,126.05,0.063]
[1743307005792,128.74873991,126.06,126.05,0.063]
[1743307006322,50.88553862,126.03,126.02,0.063]
[1743307006492,82.20220877,126.03,126.02,0.063]
[1743307006797,89.26220877,126.03,126.02,0.063]
[1743307007497,97.19680877,126.03,126.02,0.063]
[1743307009282,97.33897034,126.03,126.02,0.063]
[1743307013105,63.55255991,126.03,126.02,0.063]
[1743307016284,90.13680877,126.03,126.02,0.063]
[1743307016681,90.27897034,126.03,126.02,0.063]
[1743307018991,63.69472148,126.03,126.02,0.063]
[1743307021095,63.55255991,126.03,126.02,0.063]
[1743307021506,43.55255991,126.03,126.02,0.063]
[1743307025527,63.55255991,126.03,126.02,0.063]
[1743307027107,71.48715991,126.03,126.02,0.063]
[1743307028802,63.69472148,126.03,126.02,0.063]
[1743307035840,71.62932148,126.03,126.02,0.063]
[1743307036433,90.27897034,126.03,126.02,0.063]
[1743307042640,63.69472148,126.03,126.02,0.063]
[1743307050942,31.02770019,126.03,126.02,0.063]
[1743307051112,30.88553862,126.03,126.02,0.063]
[1743307051317,43.41039834,126.03,126.02,0.063]
[1743307054823,12.52485972,126.04,126.02,0.063]
[1743307058350,60.29702129,126.03,126.02,0.063]
[1743307058534,67.31702129,126.03,126.02,0.063]
[1743307058737,87.31702129,126.03,126.02,0.063]
[1743307060255,95.25162129,126.03,126.02,0.063]
[1743307064651,95.39378286,126.03,126.02,0.063]
[1743307070454,87.31702129,126.03,126.02,0.063]
[1743307072957,95.25162129,126.03,126.02,0.063]
[1743307074962,87.31702129,126.03,126.02,0.063]
[1743307075364,95.25162129,126.03,126.02,0.063]
[1743307075657,87.31702129,126.03,126.02,0.063]
[1743307079862,47.63,126.03,126.02,0.063]
[1743307080170,12.52485972,126.04,126.02,0.063]
[1743307080538,12.52485972,126.03,126.02,0.063]
[1743307081666,60.15485972,126.03,126.02,0.063]
[1743307085053,106.88127015,126.03,126.02,0.063]
[1743307085261,40.0,126.0,125.95,79.45736375]
[1743307085444,12.52485972,125.97,125.95,79.45736375]
[1743307085647,12.52485972,125.98,125.95,79.45736375]
[1743307086374,12.52485972,125.98,125.95,87.39696375]
[1743307086680,12.52485972,125.98,125.95,86.89696375]
[1743307086976,12.52485972,125.98,125.95,78.95736375]
[1743307087681,12.52485972,125.98,125.95,86.89686375]
[1743307088262,12.52485972,125.98,125.95,78.95736375]
[1743307088693,60.15485972,125.98,125.94,143.44]
[1743307088878,60.15485972,125.98,125.94,143.4402]
[1743307091791,60.29702129,125.99,125.94,143.4402]
[1743307092569,60.29702129,125.99,125.94,7.9402]
[1743307092983,60.29702129,125.99,125.94,8.0032]
[1743307093188,47.77216157,126.0,125.94,27.8539]
[1743307093378,60.29702129,126.0,125.94,163.3539]
[1743307102083,47.63,125.99,125.94,163.3539]
[1743307103185,47.63,126.0,125.94,163.3539]
[1743307103782,47.63,126.0,125.95,13.5147]
[1743307104092,47.63,126.02,125.96,1.6463]
[1743307104809,0.03,126.0,125.96,1.6463]
[1743307105713,0.03,126.0,125.97,7.9383]
[1743307105908,0.03,126.0,125.97,143.4383]
[1743307109395,0.03,126.0,125.97,163.2842]
[1743307119802,0.03,126.0,125.99,20.0]
[1743307120004,0.03,126.0,125.99,155.5]
[1743307120208,0.03,126.0,125.99,162.1178]
[1743307121421,0.03,126.0,125.99,170.0549]
[1743307135145,0.03,126.0,125.99,267.66191261]
[1743307135318,0.03,126.05,126.0,1.5469]
[1743307135517,0.03,126.05,126.0,216.00426375]
[1743307137240,0.03,126.05,126.01,7.9358]
[1743307137823,0.03,126.05,126.01,27.7754]
[1743307139542,0.03,126.05,126.01,163.2754]
[1743307140919,0.03,126.05,126.01,242.23276375]
[1743307145850,0.03,126.05,126.01,222.39316375]
[1743307151136,12.55485972,126.05,126.01,86.89316375]
[1743307152355,0.03,126.05,126.01,86.89316375]
[1743307154655,0.17216157,126.05,126.01,86.89316375]
[1743307154865,12.52485972,126.03,126.0,0.063]
[1743307155228,60.29485972,126.04,126.0,0.063]
[1743307158838,0.14216157,126.03,126.0,0.063]
[1743307159344,80.29485972,126.04,126.0,0.063]
[1743307160652,47.77,126.04,126.0,0.063]
[1743307160859,0.03,126.05,126.0,0.063]
[1743307162951,0.03,126.05,126.0,7.9995]
[1743307163665,0.03,126.04,126.0,7.9995]
[1743307164966,0.03,126.04,126.0,27.8407]
[1743307165864,0.03,126.04,126.0,163.3407]
[1743307171059,0.03,126.04,126.0,143.4995]
[1743307171271,47.94216157,126.04,126.0,143.4995]
[1743307171644,47.94216157,126.04,126.0,7.9995]
[1743307172554,47.94216157,126.04,126.0,0.063]
[1743307173062,60.46702129,126.04,126.0,0.063]
[1743307178059,47.94216157,126.04,126.0,0.063]
[1743307183772,47.8,126.04,126.0,0.063]
[1743307187180,0.03,126.04,126.0,0.063]
[1743307196676,47.8,126.04,126.0,0.063]
[1743307199306,0.14216157,126.03,126.0,0.063]
[1743307199476,47.77,126.02,126.0,0.063]
[1743307199797,60.29485972,126.02,126.0,0.063]
[1743307200164,47.77,126.02,126.0,0.063]
[1743307202768,47.91216157,126.03,126.0,0.063]
[1743307203094,47.77,126.02,126.0,0.063]
[1743307203892,47.91216157,126.03,126.0,0.063]
[1743307204784,47.77,126.03,126.0,0.063]
[1743307204983,47.8,126.04,126.0,0.063]
[1743307206194,0.03,126.04,126.0,0.063]
[1743307207106,0.03,126.04,126.0,135.563]
[1743307207696,0.03,126.04,126.0,142.343]
[1743307209016,0.03,126.04,126.01,7.9358]
[1743307211919,47.8,126.04,126.01,7.9358]
[1743307212209,60.29485972,126.03,126.0,143.4992]
[1743307212417,60.29485972,126.03,126.0,0.063]
[1743307212586,60.29485972,126.03,126.0,7.9994]
[1743307213187,60.29485972,126.03,126.0,0.063]
[1743307214006,60.29485972,126.02,126.0,0.063]
[1743307214909,12.52485972,126.01,126.0,0.063]
[1743307215116,60.29485972,126.01,126.0,0.063]
[1743307215713,47.77,126.01,126.0,0.063]
[1743307217013,47.77,126.02,126.0,0.063]
[1743307223217,47.8,126.02,126.0,0.063]
[1743307225104,0.03,126.02,126.0,0.063]
[1743307229822,0.03,126.02,126.0,7.9995]
[1743307233230,0.03,126.02,126.0,143.4995]
[1743307236724,0.03,126.04,126.03,20.0]
[1743307236926,0.03,126.05,126.04,1.6528]
[1743307236927,0.0001,126.05,126.04,1.6528]
[1743307237120,0.0101,126.06,126.04,234.75981261]
[1743307237626,0.0101,126.06,126.05,14.7133]
[1743307239629,0.0101,126.06,126.05,168.86294886]
[1743307240811,0.0101,126.06,126.05,175.34388452]
[1743307241216,0.0101,126.06,126.05,254.72773298]
[1743307241411,0.0101,126.06,126.05,254.86989455]
[1743307241619,0.03,126.08,126.07,38.64964886]
[1743307241916,0.03,126.08,126.07,253.10701261]
[1743307243615,0.03,126.08,126.07,261.03911261]
[1743307246432,0.03,126.1,126.08,18.64964886]
[1743307246814,0.03,126.1,126.09,7.9308]
[1743307247916,0.03,126.1,126.09,143.4308]
[1743307248314,0.03,126.11,126.09,169.28693357]
[1743307248527,0.03,126.11,126.1,19.07613357]
[1743307249019,0.0001,126.12,126.11,135.92638471]
[1743307249341,0.0001,126.13,126.12,18.64964886]
[1743307249534,0.0001,126.13,126.12,233.10691261]
[1743307250453,0.0001,126.13,126.12,241.03581261]
[1743307254842,0.0101,126.14,126.12,241.03581261]
[1743307255051,0.0201,126.15,126.14,20.0]
[1743307257249,0.0201,126.15,126.14,27.9276]
[1743307259656,0.0201,126.15,126.14,163.4275]
[1743307261756,0.0201,126.15,126.12,78.95736375]
[1743307262959,0.0201,126.15,126.12,86.88606375]
[1743307265265,0.0201,126.15,126.12,78.95736375]
[1743307265452,12.54495972,126.15,126.12,78.95736375]
[1743307267861,20.47225972,126.15,126.12,78.95736375]
[1743307268163,12.52485972,126.14,126.12,78.95736375]
[1743307268366,12.52485972,126.13,126.12,78.95736375]
[1743307268555,12.52485972,126.13,126.11,135.4999]
[1743307269451,12.52485972,126.12,126.11,135.4999]
[1743307270862,12.52485972,126.12,126.11,135.5629]
[1743307271068,60.29485972,126.12,126.11,135.5629]
[1743307274262,60.29485972,126.12,126.11,0.063]
[1743307275771,60.29485972,126.13,126.11,0.063]
[1743307276064,12.52485972,126.12,126.11,0.063]
[1743307279573,163.75640903,126.12,126.11,0.063]
[1743307280980,165.32750903,126.12,126.11,0.063]
[1743307281156,173.29250903,126.12,126.11,0.063]
[1743307281356,165.4696706,126.12,126.11,0.063]
[1743307284982,173.4346706,126.12,126.11,0.063]
[1743307285588,165.4696706,126.12,126.11,0.063]
[1743307288466,173.4346706,126.12,126.11,0.063]
[1743307292591,165.4696706,126.12,126.11,0.063]
[1743307292788,99.22883172,126.12,126.11,0.063]
[1743307293000,60.43702129,126.12,126.11,0.063]
[1743307293204,60.29485972,126.12,126.11,0.063]
[1743307299490,12.52485972,126.13,126.11,0.063]
[1743307299688,60.29485972,126.14,126.11,0.063]
[1743307301195,0.14216157,126.13,126.11,0.063]
[1743307304699,18.64964886,126.14,126.11,0.063]
[1743307304998,31.17450858,126.14,126.11,0.063]
[1743307305480,60.31495972,126.15,126.11,0.063]
[1743307305888,0.0201,126.15,126.11,0.063]
[1743307308898,12.54495972,126.15,126.11,0.063]
[1743307310795,47.77,126.14,126.11,0.063]
[1743307328215,0.0201,126.15,126.12,7.9289]
[1743307328608,0.0201,126.15,126.12,163.2511]
[1743307329014,0.03,126.14,126.12,163.2511]
[1743307329218,0.03,126.14,126.12,143.4288]
[1743307333208,0.03,126.14,126.12,7.9289]
[1743307334016,0.03,126.14,126.11,143.4923]
[1743307334222,12.52485972,126.12,126.11,0.063]
[1743307335021,60.29485972,126.13,126.11,0.063]
[1743307341201,60.32485972,126.14,126.11,0.063]
[1743307344325,60.29485972,126.12,126.11,0.063]
[1743307346202,87.15773172,126.12,126.11,0.063]
[1743307348022,79.22883172,126.12,126.11,0.063]
[1743307348615,47.77,126.12,126.11,0.063]
[1743307348914,60.32485972,126.14,126.11,0.063]
[1743307349109,47.8,126.14,126.11,0.063]
[1743307350908,61.78279269,126.14,126.11,0.063]
[1743307351824,14.01279269,126.14,126.11,0.063]
[1743307352207,0.03,126.14,126.11,0.063]
[1743307352414,0.03,126.14,126.12,7.9289]
[1743307354235,0.03,126.14,126.11,143.4922]
[1743307373450,0.03,126.14,126.11,224.06976375]
[1743307373623,0.03,126.14,126.12,6.6544]
[1743307373830,0.0201,126.15,126.14,20.0]
[1743307374447,0.0201,126.15,126.14,27.9276]
[1743307375321,0.0201,126.15,126.14,34.2464539]
[1743307376947,0.0201,126.15,126.14,248.70371765]
[1743307381853,0.0201,126.15,126.14,267.63768965]
[1743307382243,0.0201,126.15,126.14,248.70371765]
[1743307382445,0.0201,126.15,126.14,242.38486375]
[1743307383667,0.0201,126.15,126.14,222.38486375]
[1743307384244,0.0201,126.15,126.14,78.95736375]
[1743307385138,0.0201,126.15,126.14,86.88496375]
[1743307387365,0.0201,126.15,126.14,78.95736375]
[1743307387562,13.99557762,126.15,126.14,78.95736375]
[1743307388069,0.0201,126.15,126.14,78.95736375]
[1743307388264,0.0201,126.15,126.14,79.02036375]
[1743307392284,0.0201,126.15,126.14,86.94796375]
[1743307393065,0.0201,126.15,126.14,79.02036375]
[1743307397571,0.0201,126.15,126.14,0.063]
[1743307400379,47.7901,126.15,126.14,0.063]
[1743307401370,0.0201,126.15,126.14,0.063]
[1743307403272,0.0201,126.15,126.14,135.5629]
[1743307407863,0.0201,126.15,126.14,143.4905]
[1743307412198,0.0201,126.15,126.14,135.5629]
[1743307412503,13.99557762,126.15,126.14,135.5629]
[1743307412996,0.0201,126.15,126.14,135.5629]
[1743307415000,0.0201,126.15,126.14,0.063]
[1743307421502,47.7901,126.15,126.14,0.063]
[1743307437913,0.0201,126.15,126.14,0.063]
[1743307444415,0.0201,126.15,126.14,143.4905]
[1743307453213,0.0201,126.15,126.14,168.999572]
[1743307453426,0.0201,126.15,126.14,169.28389514]
[1743307453610,0.03,126.17,126.16,38.933972]
[1743307453810,0.03,126.17,126.16,253.39123575]
[1743307455632,0.03,126.17,126.16,261.31763575]
[1743307455828,0.03,126.17,126.16,242.66798689]
[1743307456033,0.03,126.17,126.16,261.31763575]
[1743307460131,0.03,126.19,126.18,154.403772]
[1743307462332,0.03,126.19,126.18,162.328872]
[1743307463019,0.03,126.19,126.18,143.3949]
[1743307483761,13.97547762,126.23,126.18,143.3949]
[1743307485165,61.70547762,126.23,126.18,143.3949]
[1743307485664,47.73,126.22,126.17,0.063]
[1743307485870,0.03,126.29,126.24,44.36004336]
[1743307486158,0.03,126.32,126.26,19.07613357]
[1743307486366,0.03,126.32,126.27,6.88]
[1743307486657,0.03,126.32,126.28,6.9]
[1743307488065,0.03,126.32,126.29,7.9182]
[1743307488254,0.03,126.32,126.29,143.388]
[1743307488453,0.03,126.32,126.29,163.1837]
[1743307488763,0.03,126.32,126.29,242.14106375]
[1743307489972,0.03,126.32,126.29,246.15503994]
[1743307490458,0.03,126.32,126.29,222.34536375]
[1743307490662,0.03,126.32,126.3,6.88]
[1743307492266,0.03,126.32,126.31,7.917]
[1743307493869,0.03,126.32,126.3,14.7975]
[1743307494466,0.03,126.32,126.3,229.22466375]
[1743307499272,0.03,126.32,126.31,19.21829514]
[1743307500274,0.03,126.32,126.31,27.13529514]
[1743307500692,1.6086,126.38,126.33,19.21829514]
[1743307500877,6.5937,126.4,126.34,6.86]
[1743307501251,20.56917762,126.4,126.34,6.86]
[1743307501562,13.97547762,126.37,126.33,78.95736375]
[1743307502079,13.97547762,126.35,126.31,142.2998]
[1743307503162,71.22807762,126.36,126.31,142.2998]
[1743307503359,13.97547762,126.34,126.31,6.86]
[1743307503562,47.87216157,126.35,126.29,222.31536375]
[1743307503563,61.84763919,126.35,126.29,222.31536375]
[1743307504584,69.76213919,126.35,126.29,222.31536375]
[1743307508284,69.76213919,126.35,126.29,222.37836375]
[1743307509179,69.76213919,126.35,126.29,229.23836375]
[1743307511678,13.97547762,126.33,126.29,214.46016375]
[1743307513281,13.97547762,126.32,126.29,214.46016375]
[1743307514981,13.97547762,126.32,126.29,79.02036375]
[1743307515881,22.03333919,126.33,126.29,79.02036375]
[1743307516185,69.76333919,126.33,126.29,79.02036375]
[1743307518289,69.76333919,126.33,126.29,86.93856375]
[1743307518491,61.84763919,126.33,126.29,86.93856375]
[1743307520903,61.87763919,126.33,126.29,86.93856375]
[1743307525497,47.76,126.33,126.29,86.93856375]
[1743307533848,61.73547762,126.33,126.29,86.93856375]
[1743307534002,69.65127762,126.33,126.29,79.02036375]
[1743307534814,13.97547762,126.32,126.29,79.02036375]
[1743307536916,13.97547762,126.32,126.29,0.063]
[1743307537535,13.97547762,126.31,126.29,0.063]
[1743307537920,13.97547762,126.32,126.29,0.063]
[1743307539912,61.70547762,126.31,126.29,0.063]
[1743307540136,13.97547762,126.3,126.29,0.063]
[1743307540331,21.89307762,126.3,126.29,0.063]
[1743307540541,13.97547762,126.31,126.29,0.063]
[1743307542348,13.97547762,126.3,126.29,0.063]
[1743307543555,21.89307762,126.3,126.29,0.063]
[1743307550553,69.62307762,126.3,126.29,0.063]
[1743307552644,61.70547762,126.3,126.29,0.063]
[1743307555733,69.62307762,126.3,126.29,0.063]
[1743307558354,61.70547762,126.3,126.29,0.063]
[1743307558853,61.70547762,126.31,126.29,0.063]
[1743307559737,13.97547762,126.3,126.29,0.063]
[1743307560646,69.62307762,126.3,126.29,0.063]
[1743307561432,61.70547762,126.3,126.29,0.063]
[1743307564250,69.76523919,126.3,126.29,0.063]
[1743307565466,102.39036567,126.3,126.29,0.063]
[1743307565759,102.39036567,126.3,126.23,135.4398]
[1743307565760,0.14216157,126.29,126.23,135.4398]
[1743307565944,13.97547762,126.24,126.2,78.95736375]
[1743307566139,13.97547762,126.23,126.2,78.95736375]
[1743307567160,13.97547762,126.23,126.2,86.88106375]
[1743307572251,13.97547762,126.22,126.2,86.88106375]
[1743307572657,13.97547762,126.22,126.19,7.9245]
[1743307572861,13.97547762,126.21,126.19,7.9245]
[1743307574774,13.97547762,126.21,126.17,0.063]
[1743307575074,13.97547762,126.2,126.17,7.9888]
[1743307575864,13.97547762,126.2,126.17,0.063]
[1743307576069,13.97547762,126.19,126.17,0.063]
[1743307576443,57.2721,126.23,126.17,0.063]
[1743307576444,13.97547762,126.18,126.17,0.063]
[1743307576767,13.97547762,126.19,126.17,0.063]
[1743307585594,47.73,126.18,126.17,0.063]
[1743307585894,13.97547762,126.19,126.17,0.063]
[1743307586780,13.97547762,126.21,126.17,0.063]
[1743307588192,67.99974886,126.23,126.17,0.063]
[1743307588489,13.97547762,126.23,126.17,135.5028]
[1743307588681,61.70547762,126.24,126.17,135.5028]
[1743307588993,13.97547762,126.23,126.18,27.738]
[1743307591883,13.97547762,126.24,126.18,27.738]
[1743307593996,13.97547762,126.24,126.18,242.13516375]
[1743307595687,63.36117762,126.26,126.18,281.76106375]
[1743307595999,61.70547762,126.26,126.2,27.7337]
[1743307596179,61.70547762,126.26,126.2,163.1735]
[1743307597495,13.97547762,126.26,126.2,163.1735]
[1743307598199,13.81700529,126.26,126.2,163.1735]
[1743307599233,6.1551,126.28,126.2,242.13086375]
[1743307599514,0.03,126.28,126.22,6.3228]
[1743307599720,0.03,126.28,126.23,6.76]
[1743307599907,0.03,126.28,126.23,221.15716375]
[1743307600419,0.03,126.28,126.24,7.9214]
[1743307605925,0.03,126.28,126.24,214.39716375]
[1743307607130,0.03,126.28,126.24,222.31836375]
[1743307609932,0.03,126.28,126.24,214.39716375]
[1743307617770,0.03,126.28,126.24,214.46016375]
[1743307621373,0.03,126.28,126.24,222.38136375]
[1743307626965,0.03,126.28,126.24,214.46016375]
[1743307627641,0.03,126.28,126.24,222.38136375]
[1743307634987,0.03,126.28,126.25,0.56864628]
[1743307635266,0.03,126.28,126.27,20.0]
[1743307635474,0.03,126.28,126.27,241.15716375]
[1743307636168,0.03,126.28,126.27,221.15716375]
[1743307638071,0.03,126.28,126.27,214.39716375]
[1743307638256,0.03,126.33,126.27,214.39716375]
[1743307638457,0.03,126.33,126.28,6.76]
[1743307640176,0.03,126.33,126.28,14.6784]
[1743307641049,0.03,126.33,126.29,0.56864628]
[1743307641248,0.03,126.33,126.29,4.61492843]
[1743307641454,0.03,126.33,126.32,20.0]
[1743307641666,0.03,126.33,126.32,242.66496375]
[1743307642354,0.03,126.33,126.32,250.58136375]
[1743307643282,0.03,126.33,126.32,221.15716375]
[1743307660787,0.03,126.33,126.32,229.64221003]
[1743307661189,1.5758,126.39,126.35,20.0]
[1743307661370,1.5758,126.39,126.35,234.39716375]
[1743307662285,1.5758,126.39,126.35,214.39716375]
[1743307662800,18.64964886,126.38,126.35,214.39716375]
[1743307664389,18.64964886,126.38,126.35,78.95736375]
[1743307668103,18.67964886,126.38,126.35,78.95736375]
[1743307669996,0.03,126.38,126.35,78.95736375]
[1743307670206,0.03,126.38,126.35,214.45736375]
[1743307670509,0.03,126.38,126.35,222.37176375]
[1743307670804,0.03,126.38,126.35,214.45736375]
[1743307672332,0.03,126.38,126.36,7.32864628]
[1743307673407,0.03,126.38,126.36,7.82864628]
[1743307673791,0.03,126.38,126.36,6.76]
[1743307676213,0.03,126.38,126.36,221.21736375]
[1743307678108,0.03,126.4,126.39,20.0]